[Event "Titled Tuesday Blitz June 6 Early 2023"]
[White "Chernomordik, Pavel"]
[Black "Itgelt, Khuyagtsogt"]
[WhiteFideId "2804530"]
[BlackFideId "4902912"]
[WhiteElo "2193"]
[BlackElo "2227"]
[Result "1-0"]
[Round "9"]
[TimeControl "180+2"]
[Date "2023.06.06"]
[WhiteClock "0:00:42"]
[BlackClock "0:00:05"]
[Board "53"]

1. e4 {[%clk 0:03:00]}  e6 {[%clk 0:03:00]} 2. Nc3 {[%clk 0:02:59]}  d5 {[%clk 0:03:00]} 3. d4 {[%clk 0:02:59]}  Bb4 {[%clk 0:02:59]} 4. Ne2 {[%clk 0:02:59]}  dxe4 {[%clk 0:02:50]} 5. a3 {[%clk 0:02:59]}  Be7 {[%clk 0:02:51]} 6. Nxe4 {[%clk 0:02:59]}  Nd7 {[%clk 0:02:51]} 7. N2c3 {[%clk 0:02:52]}  Ngf6 {[%clk 0:02:51]} 8. Bf4 {[%clk 0:02:50]}  Nd5 {[%clk 0:02:49]} 9. Bd2 {[%clk 0:02:41]}  O-O {[%clk 0:02:48]} 10. Qf3 {[%clk 0:02:35]}  f5 {[%clk 0:02:43]} 11. Nxd5 {[%clk 0:02:29]}  exd5 {[%clk 0:02:43]} 12. Nc3 {[%clk 0:02:29]}  c6 {[%clk 0:02:43]} 13. O-O-O {[%clk 0:02:26]}  b5 {[%clk 0:02:43]} 14. Nxd5 {[%clk 0:02:21]}  Bd6 {[%clk 0:01:29]} 15. Nf4 {[%clk 0:02:12]}  Qb6 {[%clk 0:01:15]} 16. d5 {[%clk 0:02:02]}  Ne5 {[%clk 0:01:14]} 17. Qb3 {[%clk 0:02:00]}  c5 {[%clk 0:01:09]} 18. Qxb5 {[%clk 0:01:57]}  Ng4 {[%clk 0:01:00]} 19. Qxb6 {[%clk 0:01:48]}  axb6 {[%clk 0:01:01]} 20. Nh3 {[%clk 0:01:46]}  Bd7 {[%clk 0:00:57]} 21. f3 {[%clk 0:01:44]}  Ne5 {[%clk 0:00:50]} 22. Nf4 {[%clk 0:01:39]}  b5 {[%clk 0:00:48]} 23. Ne6 {[%clk 0:01:39]}  Rfc8 {[%clk 0:00:41]} 24. Bf4 {[%clk 0:01:33]}  b4 {[%clk 0:00:37]} 25. axb4 {[%clk 0:01:28]}  cxb4 {[%clk 0:00:25]} 26. Kd2 {[%clk 0:01:27]}  Ra2 {[%clk 0:00:14]} 27. Rb1 {[%clk 0:01:26]}  Ba4 {[%clk 0:00:08]} 28. Nd4 {[%clk 0:01:22]}  Nxf3+ {[%clk 0:00:05]} 29. Ke3 {[%clk 0:01:12]}  Bxf4+ {[%clk 0:00:06]} 30. Kxf3 {[%clk 0:01:12]}  Be5 {[%clk 0:00:04]} 31. Nc6 {[%clk 0:01:02]}  Bf6 {[%clk 0:00:03]} 32. Bc4 {[%clk 0:01:00]}  b3 {[%clk 0:00:02]} 33. d6+ {[%clk 0:00:58]}  Kf8 {[%clk 0:00:01]} 34. Na5 {[%clk 0:00:51]}  Rxb2 {[%clk 0:00:01]} 35. cxb3 {[%clk 0:00:47]}  Bc6+ {[%clk 0:00:01]} 36. Nxc6 {[%clk 0:00:47]}  Rxb1 {[%clk 0:00:02]} 37. Rxb1 {[%clk 0:00:45]}  Rxc6 {[%clk 0:00:03]} 38. Rd1 {[%clk 0:00:45]}  Ke8 {[%clk 0:00:03]} 39. Bb5 {[%clk 0:00:44]}  Kd7 {[%clk 0:00:03]} 40. Bxc6+ {[%clk 0:00:44]}  Kxc6 {[%clk 0:00:04]} 41. d7 {[%clk 0:00:43]}  Bd8 {[%clk 0:00:05]} 42. Kf4 {[%clk 0:00:43]}  g6 {[%clk 0:00:06]} 43. Ke5 {[%clk 0:00:43]}  Kb5 {[%clk 0:00:05]} 44. Ke6 {[%clk 0:00:43]}  Kc6 {[%clk 0:00:05]} 45. Rc1+ {[%clk 0:00:42]}  Kb7 {[%clk 0:00:05]} 46. Rc8 {[%clk 0:00:42]} 1-0


[Site "https://www.chess.com"]

[Event "Titled Tuesday Blitz June 6 Early 2023"]
[White "De La Colina, Nicolas"]
[Black "Aarav Dengla"]
[WhiteFideId "30946921"]
[BlackFideId "45059756"]
[WhiteElo "2046"]
[BlackElo "2288"]
[Result "1-0"]
[Round "9"]
[TimeControl "180+2"]
[Date "2023.06.06"]
[WhiteClock "0:00:03"]
[BlackClock "0:01:26"]
[Board "55"]

1. e4 {[%clk 0:03:00]}  c5 {[%clk 0:02:58]} 2. Nf3 {[%clk 0:03:00]}  d6 {[%clk 0:02:58]} 3. c3 {[%clk 0:02:57]}  Nf6 {[%clk 0:02:58]} 4. h3 {[%clk 0:02:58]}  g6 {[%clk 0:02:57]} 5. Bd3 {[%clk 0:02:58]}  Bg7 {[%clk 0:02:57]} 6. Bc2 {[%clk 0:02:58]}  O-O {[%clk 0:02:58]} 7. d4 {[%clk 0:02:53]}  cxd4 {[%clk 0:02:57]} 8. cxd4 {[%clk 0:02:54]}  Nbd7 {[%clk 0:02:58]} 9. Nc3 {[%clk 0:02:53]}  e5 {[%clk 0:02:57]} 10. O-O {[%clk 0:02:50]}  b6 {[%clk 0:02:55]} 11. b3 {[%clk 0:02:21]}  Bb7 {[%clk 0:02:53]} 12. Ba3 {[%clk 0:02:14]}  exd4 {[%clk 0:02:53]} 13. Nxd4 {[%clk 0:02:13]}  Nc5 {[%clk 0:02:53]} 14. Re1 {[%clk 0:02:11]}  a6 {[%clk 0:02:52]} 15. Bb2 {[%clk 0:02:03]}  Rc8 {[%clk 0:02:51]} 16. Qd2 {[%clk 0:01:55]}  Re8 {[%clk 0:02:46]} 17. f3 {[%clk 0:01:51]}  Nh5 {[%clk 0:02:45]} 18. Rad1 {[%clk 0:01:43]}  Qh4 {[%clk 0:02:43]} 19. Nde2 {[%clk 0:01:35]}  Be5 {[%clk 0:02:39]} 20. b4 {[%clk 0:01:14]}  Ne6 {[%clk 0:02:36]} 21. Bb3 {[%clk 0:01:10]}  Nef4 {[%clk 0:02:31]} 22. Nd5 {[%clk 0:00:58]}  Bxd5 {[%clk 0:02:04]} 23. Bxd5 {[%clk 0:00:20]}  Nxe2+ {[%clk 0:01:59]} 24. Rxe2 {[%clk 0:00:18]}  Nf4 {[%clk 0:01:54]} 25. Ree1 {[%clk 0:00:15]}  Qg3 {[%clk 0:01:41]} 26. Kf1 {[%clk 0:00:08]}  Nxh3 {[%clk 0:01:40]} 27. gxh3 {[%clk 0:00:08]}  Qxf3+ {[%clk 0:01:38]} 28. Kg1 {[%clk 0:00:08]}  Qxh3 {[%clk 0:01:36]} 29. Bxe5 {[%clk 0:00:07]}  Rxe5 {[%clk 0:01:37]} 30. Re2 {[%clk 0:00:06]}  Rc3 {[%clk 0:01:36]} 31. Rf1 {[%clk 0:00:03]}  Rf3 {[%clk 0:01:27]} 32. Rxf3 {[%clk 0:00:02]}  Qxf3 {[%clk 0:01:28]} 33. Rf2 {[%clk 0:00:02]}  Rg5+ {[%clk 0:01:28]} 34. Qxg5 {[%clk 0:00:02]}  Qd1+ {[%clk 0:01:26]} 35. Kg2 {[%clk 0:00:03]} 1-0


[Site "https://www.chess.com"]

[Event "Titled Tuesday Blitz June 6 Early 2023"]
[White "Bas Mas, Jose Joaquin"]
[Black "Kashlinskaya, Alina"]
[WhiteFideId "22219064"]
[BlackFideId "4198026"]
[WhiteElo "2212"]
[BlackElo "2383"]
[Result "0-1"]
[Round "9"]
[TimeControl "180+2"]
[Date "2023.06.06"]
[WhiteClock "0:00:02"]
[BlackClock "0:00:06"]
[Board "56"]

1. d4 {[%clk 0:02:59]}  Nf6 {[%clk 0:02:59]} 2. Nc3 {[%clk 0:02:59]}  d5 {[%clk 0:02:58]} 3. Bf4 {[%clk 0:02:59]}  g6 {[%clk 0:02:56]} 4. e3 {[%clk 0:03:00]}  Bg7 {[%clk 0:02:56]} 5. h4 {[%clk 0:03:00]}  h5 {[%clk 0:02:56]} 6. Nf3 {[%clk 0:03:00]}  Bg4 {[%clk 0:02:54]} 7. Qd2 {[%clk 0:02:59]}  c6 {[%clk 0:02:42]} 8. Ne5 {[%clk 0:02:57]}  Bf5 {[%clk 0:02:40]} 9. f3 {[%clk 0:02:55]}  Nbd7 {[%clk 0:02:38]} 10. Be2 {[%clk 0:02:55]}  Qb6 {[%clk 0:02:29]} 11. O-O-O {[%clk 0:02:55]}  a5 {[%clk 0:02:05]} 12. Kb1 {[%clk 0:02:25]}  a4 {[%clk 0:02:04]} 13. Nxd7 {[%clk 0:02:22]}  Nxd7 {[%clk 0:02:03]} 14. e4 {[%clk 0:02:21]}  dxe4 {[%clk 0:01:59]} 15. fxe4 {[%clk 0:02:20]}  Be6 {[%clk 0:01:56]} 16. d5 {[%clk 0:02:18]}  cxd5 {[%clk 0:01:52]} 17. exd5 {[%clk 0:02:15]}  Bf5 {[%clk 0:01:46]} 18. Nb5 {[%clk 0:01:20]}  O-O {[%clk 0:01:42]} 19. g4 {[%clk 0:01:08]}  hxg4 {[%clk 0:01:35]} 20. h5 {[%clk 0:01:03]}  Rfc8 {[%clk 0:01:33]} 21. Rc1 {[%clk 0:01:03]}  Ra5 {[%clk 0:01:26]} 22. Qb4 {[%clk 0:00:37]}  Nf6 {[%clk 0:01:11]} 23. hxg6 {[%clk 0:00:34]}  Bxg6 {[%clk 0:01:11]} 24. Rhd1 {[%clk 0:00:10]}  Ne4 {[%clk 0:01:04]} 25. Qxe7 {[%clk 0:00:08]}  Rxb5 {[%clk 0:01:02]} 26. Bxb5 {[%clk 0:00:08]}  Qxb5 {[%clk 0:01:03]} 27. Be5 {[%clk 0:00:08]}  Bxe5 {[%clk 0:00:53]} 28. Qxe5 {[%clk 0:00:08]}  Nc3+ {[%clk 0:00:53]} 29. Ka1 {[%clk 0:00:08]}  Nxd1 {[%clk 0:00:53]} 30. Rxd1 {[%clk 0:00:09]}  Rxc2 {[%clk 0:00:44]} 31. Rh1 {[%clk 0:00:09]}  Bh7 {[%clk 0:00:30]} 32. Qg5+ {[%clk 0:00:07]}  Kf8 {[%clk 0:00:30]} 33. Qd8+ {[%clk 0:00:06]}  Qe8 {[%clk 0:00:24]} 34. Qd6+ {[%clk 0:00:07]}  Qe7 {[%clk 0:00:23]} 35. Qh6+ {[%clk 0:00:07]}  Ke8 {[%clk 0:00:24]} 36. Qxh7 {[%clk 0:00:08]}  Re2 {[%clk 0:00:22]} 37. Qh8+ {[%clk 0:00:08]}  Kd7 {[%clk 0:00:22]} 38. a3 {[%clk 0:00:08]}  Re1+ {[%clk 0:00:19]} 39. Rxe1 {[%clk 0:00:08]}  Qxe1+ {[%clk 0:00:20]} 40. Ka2 {[%clk 0:00:09]}  g3 {[%clk 0:00:20]} 41. Qf6 {[%clk 0:00:09]}  Qf2 {[%clk 0:00:19]} 42. Qh4 {[%clk 0:00:02]}  Qf3 {[%clk 0:00:17]} 43. Qxa4+ {[%clk 0:00:02]}  Kd6 {[%clk 0:00:17]} 44. Qb4+ {[%clk 0:00:03]}  Kd7 {[%clk 0:00:15]} 45. Qb5+ {[%clk 0:00:02]}  Kc7 {[%clk 0:00:14]} 46. Qc5+ {[%clk 0:00:03]}  Kd7 {[%clk 0:00:15]} 47. Qb5+ {[%clk 0:00:03]}  Kd8 {[%clk 0:00:14]} 48. Qb6+ {[%clk 0:00:03]}  Kc8 {[%clk 0:00:14]} 49. Qc5+ {[%clk 0:00:03]}  Kd8 {[%clk 0:00:13]} 50. Qb6+ {[%clk 0:00:03]}  Ke7 {[%clk 0:00:14]} 51. Qxb7+ {[%clk 0:00:04]}  Kd6 {[%clk 0:00:13]} 52. Qc6+ {[%clk 0:00:04]}  Ke5 {[%clk 0:00:14]} 53. Qc7+ {[%clk 0:00:05]}  Kd4 {[%clk 0:00:13]} 54. Qb6+ {[%clk 0:00:04]}  Kd3 {[%clk 0:00:12]} 55. Qb3+ {[%clk 0:00:04]}  Ke2 {[%clk 0:00:12]} 56. Qc2+ {[%clk 0:00:04]}  Ke1 {[%clk 0:00:12]} 57. Qc1+ {[%clk 0:00:05]}  Kf2 {[%clk 0:00:12]} 58. Qd2+ {[%clk 0:00:05]}  Qe2 {[%clk 0:00:12]} 59. Qf4+ {[%clk 0:00:05]}  Qf3 {[%clk 0:00:12]} 60. Qd4+ {[%clk 0:00:05]}  Kf1 {[%clk 0:00:12]} 61. d6 {[%clk 0:00:05]}  g2 {[%clk 0:00:12]} 62. d7 {[%clk 0:00:05]}  g1=Q {[%clk 0:00:12]} 63. d8=Q {[%clk 0:00:06]}  Qxd4 {[%clk 0:00:12]} 64. Qxd4 {[%clk 0:00:07]}  f5 {[%clk 0:00:12]} 65. Qd2 {[%clk 0:00:06]}  f4 {[%clk 0:00:12]} 66. a4 {[%clk 0:00:07]}  Qe4 {[%clk 0:00:10]} 67. Qd1+ {[%clk 0:00:06]}  Kg2 {[%clk 0:00:10]} 68. Qg4+ {[%clk 0:00:07]}  Kh2 {[%clk 0:00:09]} 69. Qh4+ {[%clk 0:00:07]}  Kg2 {[%clk 0:00:10]} 70. Qg4+ {[%clk 0:00:08]}  Kf2 {[%clk 0:00:10]} 71. Qh4+ {[%clk 0:00:08]}  Ke2 {[%clk 0:00:11]} 72. Qh2+ {[%clk 0:00:07]}  Kd3 {[%clk 0:00:10]} 73. Qh3+ {[%clk 0:00:07]}  f3 {[%clk 0:00:11]} 74. Qf1+ {[%clk 0:00:06]}  Qe2 {[%clk 0:00:11]} 75. Qb1+ {[%clk 0:00:06]}  Qc2 {[%clk 0:00:10]} 76. Qf1+ {[%clk 0:00:06]}  Ke4 {[%clk 0:00:11]} 77. a5 {[%clk 0:00:05]}  Qa4+ {[%clk 0:00:10]} 78. Kb1 {[%clk 0:00:05]}  Qxa5 {[%clk 0:00:11]} 79. Kc2 {[%clk 0:00:05]}  Qc5+ {[%clk 0:00:11]} 80. Kd2 {[%clk 0:00:05]}  Qe3+ {[%clk 0:00:11]} 81. Kd1 {[%clk 0:00:05]}  f2 {[%clk 0:00:10]} 82. Qe2 {[%clk 0:00:05]}  Kd4 {[%clk 0:00:07]} 83. Qg4+ {[%clk 0:00:03]}  Kd3 {[%clk 0:00:07]} 84. Qf5+ {[%clk 0:00:03]}  Kc4 {[%clk 0:00:07]} 85. Qc8+ {[%clk 0:00:03]}  Kb3 {[%clk 0:00:07]} 86. Qb7+ {[%clk 0:00:02]}  Ka2 {[%clk 0:00:07]} 87. Qa6+ {[%clk 0:00:02]}  Kb1 {[%clk 0:00:07]} 88. Qe2 {[%clk 0:00:02]}  Qd4+ {[%clk 0:00:06]} 0-1


[Site "https://www.chess.com"]

[Event "Titled Tuesday Blitz June 6 Early 2023"]
[White "Goffredo_Fofi"]
[Black "Goryachkina, Aleksandra"]
[BlackFideId "4147103"]
[WhiteElo "2493"]
[BlackElo "2471"]
[Result "1-0"]
[Round "9"]
[TimeControl "180+2"]
[Date "2023.06.06"]
[WhiteClock "0:00:22"]
[BlackClock "0:00:01"]
[Board "57"]

1. d4 {[%clk 0:03:00]}  Nf6 {[%clk 0:02:59]} 2. Nf3 {[%clk 0:03:00]}  d5 {[%clk 0:02:59]} 3. Bf4 {[%clk 0:03:00]}  Bf5 {[%clk 0:02:57]} 4. c4 {[%clk 0:02:59]}  e6 {[%clk 0:02:56]} 5. e3 {[%clk 0:02:56]}  Bb4+ {[%clk 0:02:52]} 6. Nc3 {[%clk 0:02:54]}  O-O {[%clk 0:02:52]} 7. Bd3 {[%clk 0:02:42]}  dxc4 {[%clk 0:02:31]} 8. Bxc4 {[%clk 0:02:33]}  c5 {[%clk 0:02:31]} 9. O-O {[%clk 0:02:28]}  Bg4 {[%clk 0:02:17]} 10. h3 {[%clk 0:01:50]}  Bh5 {[%clk 0:02:08]} 11. dxc5 {[%clk 0:01:27]}  Nbd7 {[%clk 0:01:58]} 12. c6 {[%clk 0:01:22]}  bxc6 {[%clk 0:01:57]} 13. Be2 {[%clk 0:01:13]}  Nd5 {[%clk 0:01:48]} 14. Nxd5 {[%clk 0:01:00]}  cxd5 {[%clk 0:01:48]} 15. Ne5 {[%clk 0:00:55]}  Bxe2 {[%clk 0:01:46]} 16. Qxe2 {[%clk 0:00:56]}  Nxe5 {[%clk 0:01:40]} 17. Bxe5 {[%clk 0:00:57]}  Qb6 {[%clk 0:01:40]} 18. Rac1 {[%clk 0:00:51]}  Rac8 {[%clk 0:01:35]} 19. Qg4 {[%clk 0:00:51]}  f6 {[%clk 0:00:45]} 20. Bxf6 {[%clk 0:00:51]}  g6 {[%clk 0:00:28]} 21. Bd4 {[%clk 0:00:44]}  Qd6 {[%clk 0:00:27]} 22. Qg5 {[%clk 0:00:32]}  Qe7 {[%clk 0:00:09]} 23. Qe5 {[%clk 0:00:25]}  Rxc1 {[%clk 0:00:01]} 24. Rxc1 {[%clk 0:00:22]} 1-0


[Site "https://www.chess.com"]

[Event "Titled Tuesday Blitz June 6 Early 2023"]
[White "Jeet, Jain"]
[Black "Ljukin, Sergei"]
[WhiteFideId "5073022"]
[BlackFideId "14102200"]
[WhiteElo "2067"]
[BlackElo "2312"]
[Result "1-0"]
[Round "9"]
[TimeControl "180+2"]
[Date "2023.06.06"]
[WhiteClock "0:00:52"]
[BlackClock "0:00:10"]
[Board "58"]

1. Nf3 {[%clk 0:02:56]}  d5 {[%clk 0:02:59]} 2. d4 {[%clk 0:02:56]}  Nf6 {[%clk 0:02:59]} 3. Bf4 {[%clk 0:02:56]}  c5 {[%clk 0:02:59]} 4. e3 {[%clk 0:02:56]}  Nc6 {[%clk 0:02:59]} 5. Nbd2 {[%clk 0:02:54]}  Bf5 {[%clk 0:02:54]} 6. c3 {[%clk 0:02:53]}  e6 {[%clk 0:02:55]} 7. Nh4 {[%clk 0:02:52]}  Bg4 {[%clk 0:02:43]} 8. f3 {[%clk 0:02:47]}  Bh5 {[%clk 0:02:42]} 9. Bg5 {[%clk 0:02:35]}  h6 {[%clk 0:02:36]} 10. Bxf6 {[%clk 0:02:35]}  Qxf6 {[%clk 0:02:36]} 11. g3 {[%clk 0:02:35]}  g5 {[%clk 0:02:15]} 12. Ng2 {[%clk 0:02:34]}  Bd6 {[%clk 0:02:12]} 13. Be2 {[%clk 0:02:30]}  O-O-O {[%clk 0:02:09]} 14. a4 {[%clk 0:02:27]}  e5 {[%clk 0:02:08]} 15. dxc5 {[%clk 0:02:23]}  Bxc5 {[%clk 0:02:07]} 16. b4 {[%clk 0:02:24]}  Be7 {[%clk 0:02:01]} 17. a5 {[%clk 0:02:22]}  d4 {[%clk 0:01:52]} 18. Ne4 {[%clk 0:02:19]}  Qe6 {[%clk 0:01:33]} 19. b5 {[%clk 0:02:17]}  dxc3 {[%clk 0:01:28]} 20. Qc2 {[%clk 0:02:13]}  Nb4 {[%clk 0:01:26]} 21. Qxc3+ {[%clk 0:02:12]}  Kb8 {[%clk 0:01:26]} 22. O-O {[%clk 0:02:10]}  Rc8 {[%clk 0:01:09]} 23. Qe1 {[%clk 0:01:52]}  Nc2 {[%clk 0:01:06]} 24. Qb1 {[%clk 0:01:50]}  Nxa1 {[%clk 0:01:03]} 25. Qxa1 {[%clk 0:01:51]}  f5 {[%clk 0:01:03]} 26. Nc3 {[%clk 0:01:45]}  e4 {[%clk 0:01:01]} 27. fxe4 {[%clk 0:01:33]}  Bxe2 {[%clk 0:01:00]} 28. Nxe2 {[%clk 0:01:31]}  Qxe4 {[%clk 0:00:53]} 29. b6 {[%clk 0:01:25]}  a6 {[%clk 0:00:52]} 30. Nd4 {[%clk 0:01:20]}  f4 {[%clk 0:00:40]} 31. gxf4 {[%clk 0:01:18]}  gxf4 {[%clk 0:00:40]} 32. Rxf4 {[%clk 0:01:19]}  Qg6 {[%clk 0:00:24]} 33. Nf5 {[%clk 0:01:12]}  Bc5 {[%clk 0:00:22]} 34. Qe5+ {[%clk 0:01:10]}  Ka8 {[%clk 0:00:22]} 35. h3 {[%clk 0:01:06]}  Rhg8 {[%clk 0:00:21]} 36. Rg4 {[%clk 0:01:06]}  Qh5 {[%clk 0:00:18]} 37. Rxg8 {[%clk 0:01:06]}  Rxg8 {[%clk 0:00:17]} 38. Qxc5 {[%clk 0:01:06]}  Qxh3 {[%clk 0:00:17]} 39. Qd5 {[%clk 0:01:01]}  Qg4 {[%clk 0:00:13]} 40. Nd6 {[%clk 0:00:56]}  Qg7 {[%clk 0:00:12]} 41. Kf2 {[%clk 0:00:52]}  Qe7 {[%clk 0:00:10]} 42. Qxg8+ {[%clk 0:00:52]} 1-0


[Site "https://www.chess.com"]

[Event "Titled Tuesday Blitz June 6 Early 2023"]
[White "Lehtosaari, Mauri"]
[Black "Orlov, Georgi"]
[WhiteFideId "501999"]
[BlackFideId "2011271"]
[WhiteElo "2486"]
[BlackElo "2636"]
[Result "0-1"]
[Round "9"]
[TimeControl "180+2"]
[Date "2023.06.06"]
[WhiteClock "0:00:14"]
[BlackClock "0:00:39"]
[Board "59"]

1. d4 {[%clk 0:02:57]}  Nf6 {[%clk 0:02:59]} 2. Nf3 {[%clk 0:02:57]}  e6 {[%clk 0:02:59]} 3. Bg5 {[%clk 0:02:58]}  h6 {[%clk 0:02:57]} 4. Bh4 {[%clk 0:02:56]}  c5 {[%clk 0:02:57]} 5. e3 {[%clk 0:02:57]}  Qb6 {[%clk 0:02:57]} 6. Nbd2 {[%clk 0:02:51]}  d5 {[%clk 0:02:55]} 7. Rb1 {[%clk 0:02:46]}  Nc6 {[%clk 0:02:51]} 8. c3 {[%clk 0:02:45]}  Be7 {[%clk 0:02:48]} 9. Bd3 {[%clk 0:02:44]}  a6 {[%clk 0:02:25]} 10. O-O {[%clk 0:02:40]}  Qc7 {[%clk 0:02:24]} 11. Bg3 {[%clk 0:02:38]}  Bd6 {[%clk 0:02:24]} 12. dxc5 {[%clk 0:02:36]}  Bxg3 {[%clk 0:02:23]} 13. hxg3 {[%clk 0:02:37]}  a5 {[%clk 0:02:19]} 14. b4 {[%clk 0:02:34]}  axb4 {[%clk 0:02:18]} 15. cxb4 {[%clk 0:02:33]}  Rxa2 {[%clk 0:02:18]} 16. Nb3 {[%clk 0:02:31]}  O-O {[%clk 0:02:15]} 17. Nbd4 {[%clk 0:02:16]}  e5 {[%clk 0:02:12]} 18. Nb5 {[%clk 0:02:16]}  Qe7 {[%clk 0:02:09]} 19. Be2 {[%clk 0:02:13]}  Bf5 {[%clk 0:02:03]} 20. Nd6 {[%clk 0:01:49]}  Bxb1 {[%clk 0:02:01]} 21. Qxb1 {[%clk 0:01:27]}  Rxe2 {[%clk 0:02:00]} 22. b5 {[%clk 0:01:28]}  Nd8 {[%clk 0:01:55]} 23. Rd1 {[%clk 0:01:16]}  Qe6 {[%clk 0:01:40]} 24. Nh4 {[%clk 0:01:10]}  Ng4 {[%clk 0:01:34]} 25. Rf1 {[%clk 0:01:04]}  d4 {[%clk 0:01:33]} 26. Nhf5 {[%clk 0:01:01]}  dxe3 {[%clk 0:01:29]} 27. fxe3 {[%clk 0:00:58]}  Nxe3 {[%clk 0:01:27]} 28. Nxe3 {[%clk 0:00:52]}  Rxe3 {[%clk 0:01:27]} 29. Nf5 {[%clk 0:00:46]}  Rb3 {[%clk 0:01:20]} 30. Qe4 {[%clk 0:00:45]}  Rxb5 {[%clk 0:01:16]} 31. Qg4 {[%clk 0:00:43]}  g5 {[%clk 0:01:14]} 32. Qh5 {[%clk 0:00:35]}  Kh7 {[%clk 0:01:12]} 33. Ne3 {[%clk 0:00:32]}  Rxc5 {[%clk 0:01:06]} 34. Nf5 {[%clk 0:00:28]}  Rc6 {[%clk 0:01:01]} 35. Ne3 {[%clk 0:00:26]}  Qg6 {[%clk 0:01:01]} 36. Qf3 {[%clk 0:00:24]}  Ne6 {[%clk 0:00:57]} 37. Nd5 {[%clk 0:00:23]}  Nd4 {[%clk 0:00:52]} 38. Qa3 {[%clk 0:00:24]}  Re8 {[%clk 0:00:42]} 39. Ne3 {[%clk 0:00:17]}  Kg7 {[%clk 0:00:40]} 40. g4 {[%clk 0:00:17]}  Rf6 {[%clk 0:00:40]} 41. Rc1 {[%clk 0:00:14]}  Ne2+ {[%clk 0:00:39]} 0-1


[Site "https://www.chess.com"]

[Event "Titled Tuesday Blitz June 6 Early 2023"]
[White "Shapiro, Viktor"]
[Black "Iskusnyh, Sergei"]
[WhiteFideId "4175700"]
[BlackFideId "4120027"]
[WhiteElo "2212"]
[BlackElo "2492"]
[Result "0-1"]
[Round "9"]
[TimeControl "180+2"]
[Date "2023.06.06"]
[WhiteClock "0:00:31"]
[BlackClock "0:00:49"]
[Board "60"]

1. c4 {[%clk 0:02:56]}  e5 {[%clk 0:02:58]} 2. Nc3 {[%clk 0:02:56]}  Bb4 {[%clk 0:02:58]} 3. g3 {[%clk 0:02:56]}  Bxc3 {[%clk 0:02:57]} 4. bxc3 {[%clk 0:02:56]}  d6 {[%clk 0:02:57]} 5. Bg2 {[%clk 0:02:56]}  Nc6 {[%clk 0:02:55]} 6. Nf3 {[%clk 0:02:56]}  f5 {[%clk 0:02:52]} 7. d3 {[%clk 0:02:56]}  Nf6 {[%clk 0:02:50]} 8. O-O {[%clk 0:02:56]}  O-O {[%clk 0:02:50]} 9. Rb1 {[%clk 0:02:54]}  Qe8 {[%clk 0:02:48]} 10. Ba3 {[%clk 0:02:39]}  b6 {[%clk 0:02:45]} 11. Nd2 {[%clk 0:02:38]}  Bd7 {[%clk 0:02:43]} 12. e3 {[%clk 0:02:36]}  Kh8 {[%clk 0:02:37]} 13. d4 {[%clk 0:02:30]}  e4 {[%clk 0:02:25]} 14. Qe2 {[%clk 0:02:17]}  Nd8 {[%clk 0:02:03]} 15. f3 {[%clk 0:02:11]}  Bc6 {[%clk 0:01:44]} 16. fxe4 {[%clk 0:02:10]}  Nxe4 {[%clk 0:01:42]} 17. Nxe4 {[%clk 0:01:57]}  Bxe4 {[%clk 0:01:42]} 18. Rb5 {[%clk 0:01:31]}  c5 {[%clk 0:01:39]} 19. Bxe4 {[%clk 0:01:27]}  Qxe4 {[%clk 0:01:38]} 20. Rf4 {[%clk 0:01:27]}  Qe6 {[%clk 0:01:33]} 21. e4 {[%clk 0:01:25]}  Nb7 {[%clk 0:01:22]} 22. Rb2 {[%clk 0:01:24]}  fxe4 {[%clk 0:01:19]} 23. Qxe4 {[%clk 0:01:13]}  Qxe4 {[%clk 0:01:05]} 24. Rxe4 {[%clk 0:01:12]}  Na5 {[%clk 0:01:05]} 25. d5 {[%clk 0:01:06]}  Rf3 {[%clk 0:01:02]} 26. Rbe2 {[%clk 0:01:00]}  h6 {[%clk 0:01:00]} 27. Kg2 {[%clk 0:00:46]}  Rxc3 {[%clk 0:00:58]} 28. Bb2 {[%clk 0:00:46]}  Rxc4 {[%clk 0:00:55]} 29. Re7 {[%clk 0:00:46]}  Rg8 {[%clk 0:00:54]} 30. Rxa7 {[%clk 0:00:45]}  Ra4 {[%clk 0:00:51]} 31. Re6 {[%clk 0:00:40]}  Kh7 {[%clk 0:00:51]} 32. Ree7 {[%clk 0:00:40]}  Rxa2 {[%clk 0:00:50]} 33. Rxg7+ {[%clk 0:00:39]}  Rxg7 {[%clk 0:00:50]} 34. Rxg7+ {[%clk 0:00:39]}  Kh8 {[%clk 0:00:51]} 35. Kh3 {[%clk 0:00:32]}  Rxb2 {[%clk 0:00:51]} 36. Rg6 {[%clk 0:00:32]}  Nc4 {[%clk 0:00:49]} 37. Rxh6+ {[%clk 0:00:32]}  Kg7 {[%clk 0:00:50]} 38. Rh4 {[%clk 0:00:31]}  b5 {[%clk 0:00:49]} 0-1


[Site "https://www.chess.com"]

[Event "Titled Tuesday Blitz June 6 Early 2023"]
[White "Gontcharov, Vladislav"]
[Black "Papayan, Oleg"]
[WhiteFideId "4123492"]
[BlackFideId "4193911"]
[WhiteElo "2420"]
[BlackElo "2167"]
[Result "1-0"]
[Round "9"]
[TimeControl "180+2"]
[Date "2023.06.06"]
[WhiteClock "0:01:27"]
[BlackClock "0:00:25"]
[Board "61"]

1. d4 {[%clk 0:03:00]}  Nf6 {[%clk 0:02:57]} 2. c4 {[%clk 0:03:00]}  e6 {[%clk 0:02:57]} 3. Nc3 {[%clk 0:02:59]}  Bb4 {[%clk 0:02:57]} 4. e3 {[%clk 0:02:59]}  O-O {[%clk 0:02:57]} 5. Bd3 {[%clk 0:02:58]}  d5 {[%clk 0:02:57]} 6. Nf3 {[%clk 0:02:56]}  dxc4 {[%clk 0:02:53]} 7. Bxc4 {[%clk 0:02:56]}  c5 {[%clk 0:02:54]} 8. O-O {[%clk 0:02:56]}  Bxc3 {[%clk 0:02:51]} 9. bxc3 {[%clk 0:02:55]}  Qc7 {[%clk 0:02:51]} 10. Qe2 {[%clk 0:02:48]}  b6 {[%clk 0:02:44]} 11. Bd3 {[%clk 0:02:45]}  Nbd7 {[%clk 0:02:29]} 12. e4 {[%clk 0:02:44]}  e5 {[%clk 0:02:26]} 13. d5 {[%clk 0:02:35]}  Ne8 {[%clk 0:02:19]} 14. h3 {[%clk 0:02:32]}  Nd6 {[%clk 0:02:19]} 15. c4 {[%clk 0:02:28]}  a6 {[%clk 0:01:29]} 16. a4 {[%clk 0:02:27]}  Rb8 {[%clk 0:01:29]} 17. Bb2 {[%clk 0:02:25]}  f6 {[%clk 0:01:29]} 18. Rac1 {[%clk 0:02:14]}  Rf7 {[%clk 0:01:23]} 19. Nh2 {[%clk 0:02:11]}  Nf8 {[%clk 0:01:21]} 20. Ng4 {[%clk 0:02:09]}  Bd7 {[%clk 0:01:15]} 21. Ra1 {[%clk 0:02:04]}  Ng6 {[%clk 0:01:06]} 22. g3 {[%clk 0:02:01]}  h5 {[%clk 0:00:58]} 23. Ne3 {[%clk 0:02:00]}  Bxh3 {[%clk 0:00:58]} 24. Qxh5 {[%clk 0:02:00]}  Bxf1 {[%clk 0:00:57]} 25. Bxf1 {[%clk 0:01:55]}  Nf8 {[%clk 0:00:47]} 26. Bh3 {[%clk 0:01:54]}  Nxe4 {[%clk 0:00:38]} 27. Bf5 {[%clk 0:01:43]}  Nd6 {[%clk 0:00:36]} 28. Bc2 {[%clk 0:01:42]}  b5 {[%clk 0:00:31]} 29. axb5 {[%clk 0:01:37]}  axb5 {[%clk 0:00:32]} 30. cxb5 {[%clk 0:01:37]}  c4 {[%clk 0:00:33]} 31. Kg2 {[%clk 0:01:34]}  Nb7 {[%clk 0:00:29]} 32. Rh1 {[%clk 0:01:29]}  c3 {[%clk 0:00:25]} 33. Qh8# {[%clk 0:01:27]} 1-0


[Site "https://www.chess.com"]